fUST/lending_fUST_20250830
["ID","MTS","AMOUNT","RATE_DAILY","PERIOD"]
[382068333,1756493816493,5000.0,0.0002405,2]
[382068334,1756493881698,170.0417776,0.00024038,2]
[382068335,1756494014340,10354.9117911,0.00023709,2]
[382068389,1756494024002,16215.5625907,0.0002372,2]
[382068482,1756494028247,421.92430339,0.0002405,2]
[382068605,1756494033937,207.0582772,0.00023807,2]
[382068661,1756494036463,5000.0,0.0002405,2]
[382068839,1756494058721,5000.0,0.0002405,2]
[382068840,1756494081630,5000.0,0.0002405,2]
[382069172,1756494103920,4602.55675326,0.0002405,2]
[382069589,1756494289143,210.93,0.0002598,120]
[382069604,1756494510503,167.223201,0.00013699,2]
[382069606,1756494544006,2156.0,0.00024036,2]
[382069633,1756494632279,-1121.28192267,0.00024105,2]
[382069634,1756494632333,-78.71807733,0.00024105,2]
[382069636,1756494632343,-174.89283679,0.00024106,2]
[382069637,1756494632351,-301.80560079,0.00024206,2]
[382069639,1756494632362,-174.89283679,0.00024255,2]
[382069641,1756494632372,-500.0,0.00024306,2]
[382069643,1756494632380,-500.0,0.00024306,2]
[382069644,1756494632391,-500.0,0.00024306,2]
[382069646,1756494632404,-174.89283679,0.00024403,2]
[382069648,1756494632413,-306.88057631,0.00024453,2]
[382069650,1756494632423,-174.89283679,0.00024552,2]
[382069651,1756494632434,-809.53256055,0.000247,2]
[382069653,1756494632444,-174.89283679,0.000247,2]
[382069655,1756494632454,-1200.0,0.00024788,2]
[382069657,1756494632463,-300.0,0.00024789,2]
[382069659,1756494632472,-300.0,0.00024789,2]
[382069661,1756494632482,-300.0,0.00024789,2]
[382069663,1756494632491,-6095.63392605,0.0002479,2]
[382069665,1756494632499,-41361.43543365,0.00024798,2]
[382069667,1756494632511,-2746.80097038,0.00024798,2]
[382069798,1756494638155,-5891.76359597,0.00024798,2]
[382069800,1756494638164,-3000.0,0.000248,2]
[382069802,1756494638174,-3000.0,0.0002481,2]
[382069804,1756494638183,-3000.0,0.0002482,2]
[382069806,1756494638193,-3000.0,0.0002483,2]
[382069808,1756494638202,-3000.0,0.0002484,2]
[382069810,1756494638211,-3000.0,0.0002485,2]
[382069812,1756494638221,-3000.0,0.0002486,2]
[382069814,1756494638230,-3000.0,0.0002487,2]
[382069816,1756494638239,-500.0,0.00024873,2]
[382069818,1756494638249,-500.0,0.00024873,2]
[382069820,1756494638259,-162.22808806,0.00024873,2]
[382069822,1756494638267,-500.0,0.00024873,2]
[382069824,1756494638277,-500.0,0.00024873,2]
[382069826,1756494638286,-500.0,0.00024873,2]
[382069828,1756494638295,-500.0,0.00024873,2]
[382069829,1756494638305,-500.0,0.00024873,2]
[382069832,1756494638315,-500.0,0.00024873,2]
[382069833,1756494638324,-500.0,0.00024873,2]
[382069835,1756494638334,-500.0,0.00024873,2]
[382069837,1756494638344,-5619.69189138,0.00024873,2]
[382069839,1756494638353,-3000.0,0.0002488,2]
[382069841,1756494638363,-500.0,0.0002488,2]
[382069843,1756494638376,-151.48789296,0.00024885,2]
[382069845,1756494638386,-151.2800354,0.00024885,2]
[382069847,1756494638396,-3000.0,0.0002489,2]
[382069849,1756494638405,-1935.8,0.0002489,3]
[382069851,1756494638415,-967.9,0.0002489,3]
[382069853,1756494638425,-483.95,0.0002489,3]
[382069855,1756494638435,-241.98,0.0002489,3]
[382069857,1756494638447,-725.95,0.0002489,3]
[382069859,1756494638456,-1961.81,0.0002489,10]
[382069861,1756494638465,-500.0,0.00024899,2]
[382069864,1756494638475,-319.29918945,0.00024899,2]
[382069866,1756494638485,-638.73829405,0.00024899,2]
[382069868,1756494638494,-500.0,0.00024899,2]
[382069870,1756494638504,-294.48878421,0.00024899,2]
[382069871,1756494638513,-500.0,0.00024899,2]
[382069873,1756494638522,-444.66311869,0.00024899,2]
[382069875,1756494638531,-640.496275,0.00024899,2]
[382069877,1756494638541,-500.0,0.00024899,2]
[382069879,1756494638551,-500.0,0.00024899,2]
[382069881,1756494638562,-500.0,0.00024899,2]
[382069883,1756494638572,-481.30405833,0.00024899,2]
[382069885,1756494638581,-500.0,0.00024899,2]
[382069887,1756494638591,-500.0,0.00024899,2]
[382069888,1756494638600,-500.0,0.00024899,2]
[382069889,1756494638610,-500.0,0.00024899,2]
[382069890,1756494638619,-397.8844724,0.00024899,2]
[382069891,1756494638629,-2.48958739,0.00024899,2]
[382069892,1756494638642,-497.51041261,0.00024899,2]
[382069893,1756494638651,-500.0,0.00024899,2]
[382069894,1756494638661,-500.0,0.00024899,2]
[382069895,1756494638671,-454.07673846,0.00024899,2]
[382069896,1756494638680,-500.0,0.00024899,2]
[382069897,1756494638689,-641.74891987,0.00024899,2]
[382069898,1756494638698,-500.0,0.00024899,2]
[382069899,1756494638708,-500.0,0.00024899,2]
[382069900,1756494638717,-500.0,0.00024899,2]
[382069901,1756494638727,-412.72195228,0.00024899,2]
[382069902,1756494638740,-500.0,0.00024899,2]
[382069903,1756494638749,-500.0,0.00024899,2]
[382069904,1756494638759,-3000.0,0.000249,2]
[382069905,1756494638768,-20740.79829528,0.000249,2]
[382069906,1756494638779,-54837.18542112,0.000249,2]
[382069907,1756494638789,-3622.091892,0.0002491,2]
[382069908,1756494638799,-500.0,0.00024973,2]
[382069909,1756494638812,-500.0,0.00024973,2]
[382069910,1756494638821,-500.0,0.00024973,2]
[382069911,1756494638831,-500.0,0.00024973,2]
[382069912,1756494638840,-500.0,0.00024973,2]
[382069913,1756494638850,-500.0,0.00024973,2]
[382069914,1756494638860,-500.0,0.00024973,2]
[382069915,1756494638869,-500.0,0.00024973,2]
[382069916,1756494638879,-500.0,0.00024973,2]
[382069917,1756494638888,-500.0,0.00024973,2]
[382069918,1756494638898,-501.00643464,0.00024973,2]
[382069919,1756494638908,-500.0,0.00024973,2]
[382069920,1756494638917,-500.0,0.00024973,2]
[382069921,1756494638927,-500.0,0.00024973,2]
[382069922,1756494638936,-500.0,0.00024973,2]
[382069923,1756494638946,-500.0,0.00024973,2]
[382069924,1756494638955,-200.53074167,0.00024973,2]
[382069925,1756494638965,-500.0,0.00024973,2]
[382069926,1756494638975,-552.47472649,0.00024973,2]
[382069927,1756494638984,-257.57865775,0.00024973,2]
[382069928,1756494638993,-500.0,0.00024973,2]
[382069929,1756494639003,-5028.40227263,0.0002498,2]
[382069930,1756494639013,-226733.951149,0.0002498,2]
[382069931,1756494639023,-428.51825878,0.00024989,2]
[382069932,1756494639033,-65841.46060627,0.0002499,2]
[382069933,1756494639070,-34158.53939373,0.0002499,2]
[382069934,1756494639080,-10033.81742339,0.00024997,2]
[382069935,1756494639089,-500.0,0.00025154,2]
[382069936,1756494639099,-300.0,0.00025305,20]
[382069937,1756494639109,-300.0,0.00025305,20]
[382069938,1756494639119,-300.0,0.00025305,20]
[382069939,1756494639129,-300.0,0.00025305,20]
[382069940,1756494639139,-300.0,0.00025305,20]
[382069941,1756494639149,-300.0,0.00025305,20]
[382069942,1756494639158,-300.0,0.00025305,20]
[382069943,1756494639168,-300.0,0.00025305,20]
[382069944,1756494639181,-300.0,0.00025305,20]
[382069945,1756494639190,-300.0,0.00025305,20]
[382069946,1756494639200,-300.0,0.00025305,20]
[382069947,1756494639209,-300.0,0.00025305,20]
[382069948,1756494639219,-300.0,0.00025305,20]
[382069949,1756494639228,-300.0,0.00025305,20]
[382069950,1756494639238,-300.0,0.00025305,20]
[382069951,1756494639247,-6095.63392603,0.0002533,2]
[382069952,1756494639257,-3871.61,0.00025419,3]
[382069953,1756494639267,-1000.0,0.00025421,2]
[382069954,1756494639277,-508.25223527,0.00025421,2]
[382069955,1756494639286,-1000.0,0.00025421,2]
[382069956,1756494639295,-1000.0,0.00025421,2]
[382069957,1756494639305,-1079.48869001,0.00025421,2]
[382069958,1756494639314,-1000.0,0.00025421,2]
[382069959,1756494639323,-1000.0,0.00025421,2]
[382069960,1756494639332,-1000.0,0.00025421,2]
[382069961,1756494639341,-500.0,0.00025428,2]
[382069962,1756494639351,-151.0,0.0002551,7]
[382069963,1756494639361,-151.0,0.0002551,7]
[382069964,1756494639374,-151.0,0.0002551,7]
[382069965,1756494639384,-292.687492,0.0002551,7]
[382069966,1756494639395,-75577.9837164,0.00025511,2]
[382069967,1756494639404,-500.0,0.00025521,2]
[382069968,1756494639414,-1000.0,0.00025521,2]
[382069969,1756494639427,-408.9402474,0.00025521,2]
[382069970,1756494639436,-1000.0,0.00025521,2]
[382069971,1756494639449,-1000.0,0.00025521,2]
[382069972,1756494639460,-1000.0,0.00025521,2]
[382069973,1756494639471,-1000.0,0.00025521,2]
[382069974,1756494639481,-1000.0,0.00025521,2]
[382069975,1756494639490,-1000.0,0.00025521,2]
[382069976,1756494639500,-1000.0,0.00025521,2]
[382069977,1756494639510,-1000.0,0.00025521,2]
[382069978,1756494639519,-500.0,0.00025521,2]
[382069979,1756494639529,-1000.0,0.00025521,2]
[382069980,1756494639539,-1000.0,0.00025521,2]
[382069981,1756494639549,-534.10727076,0.00025521,2]
[382069982,1756494639562,-1000.0,0.00025521,2]
[382069983,1756494639572,-185.981,0.00025522,10]
[382069984,1756494639581,-500.0,0.00025573,2]
[382069985,1756494639591,-500.0,0.00025573,2]
[382069986,1756494639601,-500.0,0.00025573,2]
[382069987,1756494639611,-500.0,0.00025573,2]
[382069988,1756494639621,-500.14150593,0.00025573,2]
[382069989,1756494639631,-424.86532121,0.00025573,2]
[382069990,1756494639640,-564.2566181,0.00025573,2]
[382069991,1756494639652,-283.0,0.00025613,2]
[382069992,1756494639661,-500.0,0.00025702,2]
[382069993,1756494639672,-600.0,0.0002581,20]
[382069995,1756494639681,-6095.63392603,0.00025871,2]
[382069997,1756494639691,-151.0,0.000259,14]
[382069998,1756494639700,-333.0,0.00025914,2]
[382069999,1756494639711,-1088.00830605,0.00025968,2]
[382070000,1756494639724,-1500.0,0.00025968,2]
[382070002,1756494639734,-1500.0,0.00025968,2]
[382070004,1756494639744,-1014.00608882,0.00025968,2]
[382070006,1756494639754,-1334.52151966,0.00025968,2]
[382070008,1756494639763,-500.0,0.00025973,2]
[382070010,1756494639772,-500.0,0.00025973,2]
[382070012,1756494639782,-500.0,0.00025975,2]
[382070014,1756494639791,-500.0,0.00025975,2]
[382070016,1756494639801,-500.0,0.00025976,2]
[382070018,1756494639812,-167.223201,0.00026027,2]
[382070020,1756494639822,-1500.0,0.00026068,2]
[382070023,1756494639832,-1500.0,0.00026068,2]
[382070027,1756494639841,-1500.0,0.00026068,2]
[382070030,1756494639851,-1500.0,0.00026068,2]
[382070034,1756494639861,-1500.0,0.00026068,2]
[382070037,1756494639870,-1500.0,0.00026068,2]
[382070040,1756494639880,-1500.0,0.00026068,2]
[382070043,1756494639890,-1500.0,0.00026068,2]
[382070047,1756494639899,-1500.0,0.00026068,2]
[382070051,1756494639909,-1500.0,0.00026068,2]
[382070055,1756494639918,-1500.0,0.00026068,2]
[382070059,1756494639928,-1000.0,0.00026121,2]
[382070062,1756494639938,-1000.0,0.00026121,2]
[382070065,1756494639948,-1000.0,0.00026121,2]
[382070068,1756494639958,-1000.0,0.00026121,2]
[382070071,1756494639968,-160.0,0.00026136,2]
[382070073,1756494639978,-1680.0,0.00026138,2]
[382070075,1756494639988,-390.0,0.00026166,2]
[382070078,1756494639997,-507.8708596,0.0002625,2]
[382070111,1756494640007,-3871.6,0.0002626,3]
[382070122,1756494640215,-1935.8,0.0002626,3]
[382070125,1756494640225,-967.9,0.0002626,3]
[382070128,1756494640235,-483.96,0.0002626,3]
[382070131,1756494640245,-425.57542551,0.0002626,3]
[382070134,1756494640255,-11358.84933845,0.0002626,3]
[382070136,1756494640264,-160.0,0.0002626,3]
[382070139,1756494640274,-160.0,0.0002626,3]
[382070143,1756494640285,-160.0,0.0002626,3]
[382070146,1756494640300,-160.0,0.0002626,3]
[382070148,1756494640313,-160.0,0.0002626,3]
[382070149,1756494640322,-845.57753514,0.0002626,3]
[382070151,1756494640332,-160.0,0.0002626,3]
[382070153,1756494640342,-217.30324474,0.0002626,3]
[382070156,1756494640354,-151.0,0.000263,15]
[382070158,1756494640364,-6095.63392603,0.00026411,2]
[382070160,1756494640378,-151.0,0.00026516,7]
[382070162,1756494640388,-224.270744,0.00026516,7]
[382070164,1756494640398,-2036.3278538,0.00026516,2]
[382070166,1756494640408,-2000.0,0.00026516,2]
[382070168,1756494640418,-502.76839876,0.00026521,2]
[382070170,1756494640428,-265.34813812,0.00026523,2]
[382070172,1756494640439,-151.0,0.000266,12]
[382070174,1756494640449,-876.0520506,0.00026616,2]
[382070176,1756494640459,-500.0,0.00026616,2]
[382070177,1756494640470,-2000.0,0.00026616,2]
[382070180,1756494640479,-216.00245706,0.00026616,2]
[382070181,1756494640489,-226.26693758,0.00026616,2]
[382070183,1756494640498,-2000.0,0.00026616,2]
[382070186,1756494640508,-1000.0,0.00026616,2]
[382070187,1756494640517,-1502.83845701,0.00026616,2]
[382070190,1756494640527,-2000.0,0.00026616,2]
[382070191,1756494640537,-2000.0,0.00026616,2]
[382070194,1756494640547,-2000.0,0.00026616,2]
[382070196,1756494640558,-362.42930821,0.00026668,2]
[382070198,1756494640568,-501.38259314,0.00026668,2]
[382070200,1756494640578,-501.41096466,0.00026668,2]
[382070202,1756494640587,-1047.33981831,0.00026668,2]
[382070204,1756494640597,-260.0,0.00026684,2]
[382070206,1756494640606,-3224.09178285,0.00026708,2]
[382070208,1756494640616,-7743.22,0.00026789,3]
[382070210,1756494640625,-420.0,0.00026861,2]
[382070212,1756494640635,-151.0,0.000269,16]
[382070213,1756494640644,-6095.63392603,0.00026951,2]
[382070214,1756494640653,-1680.0,0.00026981,2]
[382070215,1756494640662,-151.0,0.00027,20]
[382070216,1756494640672,-50000.0,0.00027,7]
[382070217,1756494640681,-425.57542551,0.00027,7]
[382070218,1756494640690,-11358.84933845,0.00027,7]
[382070219,1756494640699,-160.0,0.00027,7]
[382070220,1756494640708,-160.0,0.00027,7]
[382070221,1756494640718,-160.0,0.00027,7]
[382070222,1756494640727,-845.57753514,0.00027,7]
[382070223,1756494640737,-151.0,0.00027,7]
[382070224,1756494640746,-151.0,0.00027,7]
[382070225,1756494640755,-151.0,0.00027,7]
[382070226,1756494640765,-160.0,0.00027,7]
[382070227,1756494640774,-217.30324474,0.00027,7]
[382070228,1756494640783,-151.0,0.00027051,7]
[382070230,1756494640792,-151.0,0.00027051,7]
[382070232,1756494640801,-168.449759,0.00027051,7]
[382070234,1756494640813,-151.0,0.00027051,7]
[382070236,1756494640823,-151.0,0.00027051,7]
[382070238,1756494640832,-151.0,0.00027051,7]
[382070240,1756494640843,-2500.0,0.00027064,2]
[382070242,1756494640853,-150.0,0.00027073,2]
[382070244,1756494640862,-500.0,0.00027073,2]
[382070246,1756494640872,-500.0,0.00027073,2]
[382070248,1756494640881,-500.0,0.00027073,2]
[382070250,1756494640891,-500.0,0.00027073,2]
[382070252,1756494640900,-310.28792753,0.00027073,2]
[382070254,1756494640909,-500.0,0.00027073,2]
[382070256,1756494640918,-500.0,0.00027073,2]
[382070258,1756494640927,-500.0,0.00027073,2]
[382070260,1756494640936,-500.0,0.00027073,2]
[382070262,1756494640945,-500.0,0.00027073,2]
[382070264,1756494640954,-500.0,0.00027073,2]
[382070266,1756494640963,-500.0,0.00027073,2]
[382070267,1756494640972,-500.0,0.00027073,2]
[382070269,1756494640981,-500.0,0.00027073,2]
[382070271,1756494640991,-609.92345202,0.00027073,2]
[382070273,1756494641000,-500.0,0.00027073,2]
[382070275,1756494641009,-500.0,0.00027073,2]
[382070277,1756494641018,-500.0,0.00027073,2]
[382070279,1756494641028,-500.88955119,0.00027073,2]
[382070281,1756494641037,-501.12458216,0.00027073,2]
[382070283,1756494641046,-500.0,0.00027073,2]
[382070285,1756494641057,-500.0,0.00027073,2]
[382070287,1756494641066,-500.0,0.00027073,2]
[382070289,1756494641076,-500.0,0.00027073,2]
[382070291,1756494641085,-500.0,0.00027073,2]
[382070293,1756494641093,-500.0,0.00027073,2]
[382070295,1756494641103,-500.0,0.00027073,2]
[382070297,1756494641112,-500.0,0.00027073,2]
[382070298,1756494641121,-76848.63,0.000271,7]
[382070300,1756494641130,-12936.38,0.000271,7]
[382070302,1756494641139,-151.0,0.000271,7]
[382070304,1756494641149,-151.0,0.000271,7]
[382070306,1756494641159,-151.0,0.000271,7]
[382070308,1756494641168,-151.0,0.000271,7]
[382070310,1756494641178,-151.0,0.000271,7]
[382070312,1756494641189,-151.0,0.000271,7]
[382070314,1756494641198,-2500.0,0.00027164,2]
[382070316,1756494641208,-500.0,0.00027164,2]
[382070318,1756494641217,-2500.0,0.00027164,2]
[382070320,1756494641227,-233.24389809,0.00027164,2]
[382070323,1756494641236,-2500.0,0.00027164,2]
[382070324,1756494641246,-360.0,0.00027232,2]
[382070326,1756494641255,-151.0,0.00027397,7]
[382070328,1756494641264,-151.0,0.00027397,7]
[382070330,1756494641274,-152.662223,0.00027397,7]
[382070332,1756494641283,-221.477214,0.00027397,7]
[382070334,1756494641292,-221.477214,0.00027397,7]
[382070336,1756494641302,-221.477214,0.00027397,7]
[382070338,1756494641313,-221.477214,0.00027397,7]
[382070340,1756494641322,-151.407688,0.00027397,7]
[382070342,1756494641331,-151.0,0.00027397,7]
[382070344,1756494641340,-151.0,0.00027397,7]
[382070346,1756494641349,-151.0,0.00027397,7]
[382070348,1756494641359,-219.266405,0.00027397,7]
[382070350,1756494641370,-151.0,0.00027397,7]
[382070352,1756494641380,-151.0,0.00027397,7]
[382070354,1756494641389,-151.0,0.00027397,7]
[382070356,1756494641398,-151.0,0.00027397,7]
[382070358,1756494641407,-152.454756,0.00027397,7]
[382070360,1756494641418,-151.0,0.00027397,7]
[382070362,1756494641427,-151.0,0.00027397,7]
[382070364,1756494641437,-151.0,0.00027397,7]
[382070366,1756494641448,-151.0,0.00027397,7]
[382070368,1756494641457,-151.0,0.00027397,7]
[382070370,1756494641466,-152.078291,0.00027397,7]
[382070372,1756494641475,-151.0,0.00027397,7]
[382070374,1756494641485,-151.0,0.00027397,7]
[382070376,1756494641494,-151.0,0.00027397,7]
[382070378,1756494641503,-151.0,0.00027397,7]
[382070380,1756494641513,-151.0,0.00027397,7]
[382070382,1756494641522,-151.0,0.00027397,7]
[382070384,1756494641531,-151.0,0.00027397,7]
[382070386,1756494641541,-151.0,0.00027397,7]
[382070388,1756494641550,-151.0,0.00027397,7]
[382070390,1756494641561,-151.0,0.00027397,7]
[382070392,1756494641571,-151.0,0.00027397,7]
[382070394,1756494641582,-151.0,0.00027397,7]
[382070396,1756494641592,-151.0,0.00027397,7]
[382070398,1756494641602,-153.708351,0.00027397,7]
[382070400,1756494641611,-151.0,0.00027397,7]
[382070402,1756494641620,-151.0,0.00027397,7]
[382070404,1756494641629,-151.0,0.00027397,7]
[382070406,1756494641640,-151.0,0.00027397,7]
[382070408,1756494641650,-151.0,0.00027397,7]
[382070410,1756494641659,-214.917096,0.00027397,7]
[382070412,1756494641668,-151.0,0.00027397,7]
[382070414,1756494641677,-151.0,0.00027397,7]
[382070416,1756494641687,-151.0,0.00027397,7]
[382070418,1756494641696,-151.0,0.00027397,7]
[382070420,1756494641705,-151.0,0.00027397,7]
[382070422,1756494641715,-151.0,0.00027397,7]
[382070424,1756494641724,-217.101025,0.00027397,7]
[382070426,1756494641734,-217.101025,0.00027397,7]
[382070428,1756494641743,-217.101025,0.00027397,7]
[382070430,1756494641752,-217.101025,0.00027397,7]
[382070432,1756494641761,-217.101025,0.00027397,7]
[382070434,1756494641770,-217.101025,0.00027397,7]
[382070436,1756494641780,-217.101025,0.00027397,7]
[382070438,1756494641788,-217.101025,0.00027397,7]
[382070440,1756494641797,-151.0,0.00027397,7]
[382070442,1756494641809,-151.0,0.00027397,7]
[382070444,1756494641819,-151.0,0.00027397,7]
[382070446,1756494641828,-151.0,0.00027397,7]
[382070448,1756494641837,-177.51497,0.00027397,7]
[382070450,1756494641846,-177.51497,0.00027397,7]
[382070452,1756494641857,-177.51497,0.00027397,7]
[382070454,1756494641866,-177.51497,0.00027397,7]
[382070456,1756494641875,-177.51497,0.00027397,7]
[382070458,1756494641885,-177.51497,0.00027397,7]
[382070460,1756494641894,-177.51497,0.00027397,7]
[382070462,1756494641904,-177.51497,0.00027397,7]
[382070464,1756494641913,-249.967078,0.00027397,7]
[382070466,1756494641923,-249.967078,0.00027397,7]
[382070468,1756494641932,-249.967078,0.00027397,7]
[382070470,1756494641941,-249.967078,0.00027397,7]
[382070472,1756494641950,-151.0,0.00027397,7]
[382070474,1756494641960,-249.967078,0.00027397,7]
[382070476,1756494641969,-151.0,0.00027397,7]
[382070478,1756494641978,-249.967078,0.00027397,7]
[382070480,1756494641989,-151.0,0.00027397,7]
[382070482,1756494641998,-249.967078,0.00027397,7]
[382070484,1756494642008,-151.0,0.00027397,7]
[382070486,1756494642017,-249.967078,0.00027397,7]
[382070488,1756494642026,-151.0,0.00027397,7]
[382070490,1756494642035,-151.0,0.00027397,7]
[382070492,1756494642044,-151.0,0.00027397,7]
[382070494,1756494642054,-162.38328,0.00027397,7]
[382070495,1756494642065,-151.580675,0.00027397,7]
[382070497,1756494642074,-151.0,0.00027397,7]
[382070499,1756494642083,-151.0,0.00027397,7]
[382070501,1756494642092,-151.0,0.00027397,7]
[382070503,1756494642101,-151.0,0.00027397,7]
[382070505,1756494642111,-151.0,0.00027397,7]
[382070507,1756494642120,-151.0,0.00027397,7]
[382070509,1756494642129,-311.093442,0.00027397,7]
[382070511,1756494642138,-311.093442,0.00027397,7]
[382070513,1756494642148,-311.093442,0.00027397,7]
[382070515,1756494642157,-311.093442,0.00027397,7]
[382070517,1756494642166,-311.093442,0.00027397,7]
[382070519,1756494642175,-311.093442,0.00027397,7]
[382070521,1756494642184,-311.093442,0.00027397,7]
[382070523,1756494642194,-311.093442,0.00027397,7]
[382070525,1756494642203,-311.093442,0.00027397,7]
[382070527,1756494642212,-311.093442,0.00027397,7]
[382070529,1756494642221,-311.093442,0.00027397,7]
[382070532,1756494642231,-311.093442,0.00027397,7]
[382070533,1756494642240,-151.0,0.00027397,7]
[382070536,1756494642250,-184.015864,0.00027397,7]
[382070537,1756494642259,-151.0,0.00027397,7]
[382070539,1756494642269,-151.0,0.00027397,7]
[382070541,1756494642278,-151.0,0.00027397,7]
[382070543,1756494642287,-151.0,0.00027397,7]
[382070545,1756494642296,-151.0,0.00027397,7]
[382070547,1756494642307,-151.0,0.00027397,7]
[382070549,1756494642317,-206.750668,0.00027397,7]
[382070552,1756494642326,-716.513148,0.00027397,7]
[382070554,1756494642336,-716.513148,0.00027397,7]
[382070556,1756494642346,-716.513148,0.00027397,7]
[382070557,1756494642356,-716.513148,0.00027397,7]
[382070559,1756494642368,-716.513148,0.00027397,7]
[382070561,1756494642379,-716.513148,0.00027397,7]
[382070563,1756494642388,-716.513148,0.00027397,7]
[382070565,1756494642398,-716.513148,0.00027397,7]
[382070567,1756494642407,-716.513148,0.00027397,7]
[382070569,1756494642418,-716.513148,0.00027397,7]
[382070571,1756494642428,-716.513148,0.00027397,7]
[382070573,1756494642437,-716.513148,0.00027397,7]
[382070575,1756494642446,-151.0,0.00027397,7]
[382070578,1756494642457,-151.0,0.00027397,7]
[382070580,1756494642467,-151.0,0.00027397,7]
[382070582,1756494642477,-151.0,0.00027397,7]
[382070583,1756494642486,-151.0,0.00027397,7]
[382070585,1756494642496,-151.0,0.00027397,7]
[382070587,1756494642505,-151.0,0.00027397,7]
[382070589,1756494642515,-151.0,0.00027397,7]
[382070592,1756494642525,-248.736878,0.00027397,7]
[382070594,1756494642535,-248.736878,0.00027397,7]
[382070596,1756494642546,-151.0,0.00027397,7]
[382070598,1756494642555,-151.0,0.00027397,7]
[382070600,1756494642566,-248.736878,0.00027397,7]
[382070601,1756494642575,-151.0,0.00027397,7]
[382070603,1756494642585,-248.736878,0.00027397,7]
[382070604,1756494642595,-151.0,0.00027397,7]
[382070605,1756494642604,-151.0,0.00027397,7]
[382070606,1756494642614,-168.824,0.00027397,7]
[382070607,1756494642623,-248.736878,0.00027397,7]
[382070608,1756494642634,-248.736878,0.00027397,7]
[382070609,1756494642645,-151.0,0.00027397,7]
[382070610,1756494642654,-151.0,0.00027397,7]
[382070611,1756494642664,-248.736878,0.00027397,7]
[382070612,1756494642673,-248.736878,0.00027397,7]
[382070614,1756494642682,-151.0,0.00027397,7]
[382070616,1756494642692,-151.0,0.00027397,7]
[382070619,1756494642701,-247.556106,0.00027397,7]
[382070621,1756494642711,-151.0,0.00027397,7]
[382070622,1756494642720,-151.0,0.00027397,7]
[382070624,1756494642729,-151.0,0.00027397,7]
[382070625,1756494642738,-151.0,0.00027397,7]
[382070627,1756494642747,-151.0,0.00027397,7]
[382070629,1756494642757,-151.0,0.00027397,7]
[382070631,1756494642766,-151.0,0.00027397,7]
[382070633,1756494642775,-151.0,0.00027397,7]
[382070637,1756494642785,-151.0,0.00027397,7]
[382070641,1756494642795,-151.0,0.00027397,7]
[382070644,1756494642804,-159.540892,0.00027397,7]
[382070646,1756494642816,-151.0,0.00027397,7]
[382070648,1756494642826,-162.361126,0.00027397,7]
[382070649,1756494642836,-151.0,0.00027397,7]
[382070650,1756494642845,-151.0,0.00027397,7]
[382070651,1756494642854,-151.0,0.00027397,7]
[382070652,1756494642863,-151.0,0.00027397,7]
[382070653,1756494642872,-151.0,0.00027397,7]
[382070654,1756494642882,-153.710893,0.00027397,7]
[382070655,1756494642891,-151.0,0.00027397,7]
[382070656,1756494642900,-151.0,0.00027397,7]
[382070657,1756494642910,-151.0,0.00027397,7]